[Event "*** SCC Grand Prix: Titled Tuesday Blitz"]
[Site "Chess.com"]
[Date "2020.10.06"]
[Round "3"]
[White "Sesleria"]
[Black "ORS1984"]
[Result "0-1"]
[WhiteElo "2115"]
[BlackElo "2484"]
[TimeControl "180+1"]
[EndTime "10:23:59 PDT"]
[Termination "ORS1984 won by resignation"]

1. e4 {[%clk 0:03:00.9]} 1... c5 {[%clk 0:02:59.7]} 2. Nf3 {[%clk 0:03:00.8]}
2... d6 {[%clk 0:02:59.9]} 3. d4 {[%clk 0:03:01.2]} 3... cxd4 {[%clk 0:03:00.8]}
4. Nxd4 {[%clk 0:03:01.5]} 4... Nf6 {[%clk 0:03:01]} 5. Nc3 {[%clk 0:03:01.9]}
5... a6 {[%clk 0:03:01.2]} 6. f4 {[%clk 0:03:01.7]} 6... e6 {[%clk 0:02:59.6]}
7. Qf3 {[%clk 0:03:01.4]} 7... e5 {[%clk 0:02:58.9]} 8. Nb3 {[%clk 0:02:54.2]}
8... Be7 {[%clk 0:02:55]} 9. Bd3 {[%clk 0:02:32.1]} 9... b5 {[%clk 0:02:54.7]}
10. f5 {[%clk 0:02:21.3]} 10... Bb7 {[%clk 0:02:54.5]} 11. Bg5 {[%clk 0:01:49]}
11... Nbd7 {[%clk 0:02:53.4]} 12. Bxf6 {[%clk 0:01:29.2]} 12... Nxf6 {[%clk
0:02:53]} 13. g4 {[%clk 0:01:27.1]} 13... b4 {[%clk 0:02:52.7]} 14. Nd5 {[%clk
0:01:16.5]} 14... Nxd5 {[%clk 0:02:52.5]} 15. exd5 {[%clk 0:01:16.7]} 15... Bh4+
{[%clk 0:02:53.4]} 16. Kf1 {[%clk 0:00:54.2]} 16... Qb6 {[%clk 0:02:52.9]} 17.
Kg2 {[%clk 0:00:49.3]} 17... h5 {[%clk 0:02:44.3]} 18. h3 {[%clk 0:00:35.2]}
18... Bxd5 {[%clk 0:02:41.5]} 0-1

[Event "*** SCC Grand Prix: Titled Tuesday Blitz"]
[Site "Chess.com"]
[Date "2020.10.06"]
[Round "3"]
[White "Sergey85Rodchenkov"]
[Black "SophieNikoladze"]
[Result "1-0"]
[WhiteElo "2462"]
[BlackElo "2272"]
[TimeControl "180+1"]
[EndTime "10:24:12 PDT"]
[Termination "Sergey85Rodchenkov won by resignation"]

1. e4 {[%clk 0:02:58.4]} 1... d6 {[%clk 0:02:56.5]} 2. d4 {[%clk 0:02:58.1]}
2... Nf6 {[%clk 0:02:53.5]} 3. Nc3 {[%clk 0:02:56]} 3... e5 {[%clk 0:02:53.2]}
4. Nf3 {[%clk 0:02:54.4]} 4... exd4 {[%clk 0:02:52.5]} 5. Nxd4 {[%clk
0:02:51.3]} 5... Be7 {[%clk 0:02:53.1]} 6. Bc4 {[%clk 0:02:50.5]} 6... O-O
{[%clk 0:02:52.9]} 7. O-O {[%clk 0:02:50.2]} 7... a6 {[%clk 0:02:53.5]} 8. a4
{[%clk 0:02:49.6]} 8... c6 {[%clk 0:02:52.8]} 9. a5 {[%clk 0:02:46.9]} 9... b5
{[%clk 0:02:49.6]} 10. axb6 {[%clk 0:02:46.4]} 10... Qxb6 {[%clk 0:02:49.7]} 11.
Re1 {[%clk 0:02:43.3]} 11... Rd8 {[%clk 0:02:48.3]} 12. Bb3 {[%clk 0:02:36.5]}
12... Bf8 {[%clk 0:02:44.4]} 13. Be3 {[%clk 0:02:29.5]} 13... c5 {[%clk
0:02:43.2]} 14. Nf5 {[%clk 0:02:25.9]} 14... Bxf5 {[%clk 0:02:40]} 15. exf5
{[%clk 0:02:26.1]} 15... Nc6 {[%clk 0:02:33.3]} 16. Bg5 {[%clk 0:02:23.6]} 16...
Be7 {[%clk 0:02:21.7]} 17. Bxf6 {[%clk 0:02:12.8]} 17... Bxf6 {[%clk 0:02:21.2]}
18. Nd5 {[%clk 0:02:13.3]} 18... Qb7 {[%clk 0:02:18.5]} 19. Nxf6+ {[%clk
0:02:12.4]} 19... gxf6 {[%clk 0:02:18.6]} 20. Bd5 {[%clk 0:02:08.5]} 20... Re8
{[%clk 0:02:15]} 21. Qg4+ {[%clk 0:02:04.4]} 21... Kf8 {[%clk 0:02:13.4]} 22.
Qh4 {[%clk 0:02:03.2]} 22... Re5 {[%clk 0:02:11.3]} 23. Rxe5 {[%clk 0:01:57.7]}
23... fxe5 {[%clk 0:02:07.3]} 24. f6 {[%clk 0:01:50.8]} 24... Qxb2 {[%clk
0:02:03.4]} 25. Qh6+ {[%clk 0:01:45.7]} 25... Ke8 {[%clk 0:01:56.3]} 26. Bxc6+
{[%clk 0:01:45.8]} 26... Kd8 {[%clk 0:01:53.8]} 27. Rf1 {[%clk 0:01:30.4]} 27...
Rb8 {[%clk 0:01:52.2]} 28. Qxh7 {[%clk 0:01:29.7]} 28... Kc7 {[%clk 0:01:48]}
29. Bd5 {[%clk 0:01:28.6]} 1-0

[Event "*** SCC Grand Prix: Titled Tuesday Blitz"]
[Site "Chess.com"]
[Date "2020.10.06"]
[Round "3"]
[White "SaqoChess_Twitch"]
[Black "QuintilianoR"]
[Result "0-1"]
[WhiteElo "2403"]
[BlackElo "2591"]
[TimeControl "180+1"]
[EndTime "10:24:13 PDT"]
[Termination "QuintilianoR won by checkmate"]

1. d4 {[%clk 0:03:00.9]} 1... d5 {[%clk 0:02:59.2]} 2. c4 {[%clk 0:03:01.2]}
2... c6 {[%clk 0:02:59]} 3. Nc3 {[%clk 0:03:01.6]} 3... Nf6 {[%clk 0:02:59]} 4.
e3 {[%clk 0:03:02]} 4... e6 {[%clk 0:02:58.8]} 5. Nf3 {[%clk 0:03:02.6]} 5...
Nbd7 {[%clk 0:02:58.7]} 6. Bd3 {[%clk 0:03:03.3]} 6... dxc4 {[%clk 0:02:55.4]}
7. Bxc4 {[%clk 0:03:04.2]} 7... b5 {[%clk 0:02:55.6]} 8. Bd3 {[%clk 0:03:03.9]}
8... a6 {[%clk 0:02:55.9]} 9. e4 {[%clk 0:03:02.5]} 9... c5 {[%clk 0:02:53.9]}
10. e5 {[%clk 0:03:02.9]} 10... cxd4 {[%clk 0:02:51.4]} 11. Nxb5 {[%clk
0:03:02.9]} 11... axb5 {[%clk 0:02:50.8]} 12. exf6 {[%clk 0:03:03.8]} 12... Bb7
{[%clk 0:02:47.4]} 13. O-O {[%clk 0:03:00.9]} 13... Qb6 {[%clk 0:02:46.3]} 14.
Nxd4 {[%clk 0:02:52.2]} 14... Qxd4 {[%clk 0:02:39.5]} 15. Bxb5 {[%clk
0:02:52.1]} 15... Qxd1 {[%clk 0:02:34.2]} 16. Rxd1 {[%clk 0:02:53]} 16... Bd5
{[%clk 0:02:34.1]} 17. Rxd5 {[%clk 0:02:39.5]} 17... exd5 {[%clk 0:02:33.3]} 18.
Bg5 {[%clk 0:02:40.4]} 18... g6 {[%clk 0:02:17.5]} 19. Rd1 {[%clk 0:02:30.4]}
19... O-O-O {[%clk 0:02:09.7]} 20. Rc1+ {[%clk 0:02:15.7]} 20... Kb7 {[%clk
0:02:06.9]} 21. Bc6+ {[%clk 0:02:15.3]} 21... Kb6 {[%clk 0:02:01]} 22. Be3+
{[%clk 0:02:05.2]} 22... Bc5 {[%clk 0:01:59.6]} 23. Bxd7 {[%clk 0:01:55.3]}
23... Bxe3 {[%clk 0:01:58.4]} 24. Rc6+ {[%clk 0:01:54.8]} 24... Kb7 {[%clk
0:01:58.1]} 25. fxe3 {[%clk 0:01:46.5]} 25... Rxd7 {[%clk 0:01:57.2]} 26. Rc5
{[%clk 0:01:47.4]} 26... Rc8 {[%clk 0:01:55.4]} 27. Rb5+ {[%clk 0:01:46.9]}
27... Kc6 {[%clk 0:01:55.1]} 28. Rb3 {[%clk 0:01:47.8]} 28... Kd6 {[%clk
0:01:55]} 29. g4 {[%clk 0:01:47.2]} 29... g5 {[%clk 0:01:53.3]} 30. Kf2 {[%clk
0:01:45.7]} 30... Ke5 {[%clk 0:01:52.7]} 31. Kf3 {[%clk 0:01:45.8]} 31... Rc2
{[%clk 0:01:52.2]} 32. a4 {[%clk 0:01:41.4]} 32... Rxh2 {[%clk 0:01:50.8]} 33.
a5 {[%clk 0:01:41.8]} 33... Rd6 {[%clk 0:01:50.8]} 34. Rb7 {[%clk 0:01:39.9]}
34... Rxf6+ {[%clk 0:01:49.8]} 35. Kg3 {[%clk 0:01:40.4]} 35... Rhf2 {[%clk
0:01:49.9]} 36. b4 {[%clk 0:01:40.9]} 36... R6f3# {[%clk 0:01:48.7]} 0-1

[Event "*** SCC Grand Prix: Titled Tuesday Blitz"]
[Site "Chess.com"]
[Date "2020.10.06"]
[Round "3"]
[White "Chuchofrio1"]
[Black "kinga2008"]
[Result "1-0"]
[WhiteElo "2343"]
[BlackElo "2141"]
[TimeControl "180+1"]
[EndTime "10:24:14 PDT"]
[Termination "Chuchofrio1 won by resignation"]

1. e4 {[%clk 0:02:59.5]} 1... c5 {[%clk 0:02:58.9]} 2. Nc3 {[%clk 0:02:58.1]}
2... e6 {[%clk 0:02:57.3]} 3. f4 {[%clk 0:02:57.5]} 3... Nc6 {[%clk 0:02:52.7]}
4. Bb5 {[%clk 0:02:56.8]} 4... d5 {[%clk 0:02:47.1]} 5. d3 {[%clk 0:02:53.2]}
5... a6 {[%clk 0:02:43.8]} 6. Bxc6+ {[%clk 0:02:53.3]} 6... bxc6 {[%clk
0:02:43.1]} 7. Nf3 {[%clk 0:02:54.2]} 7... Bb7 {[%clk 0:02:40.5]} 8. O-O {[%clk
0:02:53.9]} 8... g6 {[%clk 0:02:27.7]} 9. f5 {[%clk 0:02:53.1]} 9... Bg7 {[%clk
0:02:23.8]} 10. fxe6 {[%clk 0:02:52.4]} 10... fxe6 {[%clk 0:02:22.2]} 11. Ng5
{[%clk 0:02:53.3]} 11... Qd7 {[%clk 0:02:14.2]} 12. Rf7 {[%clk 0:02:52.2]} 12...
Bd4+ {[%clk 0:02:06.4]} 13. Kh1 {[%clk 0:02:51.6]} 13... Ne7 {[%clk 0:02:04.2]}
14. Qg4 {[%clk 0:02:47.9]} 14... e5 {[%clk 0:01:55.9]} 15. Qxd7+ {[%clk
0:02:42.3]} 15... Kxd7 {[%clk 0:01:53.4]} 16. Nxh7 {[%clk 0:02:41.5]} 16... Ke6
{[%clk 0:01:45.2]} 17. Ng5+ {[%clk 0:02:32]} 17... Kd6 {[%clk 0:01:38.4]} 18.
Bd2 {[%clk 0:02:30.4]} 18... Raf8 {[%clk 0:01:28.6]} 19. Raf1 {[%clk 0:02:21.3]}
19... Rd8 {[%clk 0:01:15.2]} 20. R7f6+ {[%clk 0:01:57.8]} 20... Kd7 {[%clk
0:01:13.7]} 21. Nf7 {[%clk 0:01:58.7]} 21... Rdf8 {[%clk 0:01:03.1]} 22. Nxe5+
{[%clk 0:01:58.8]} 22... Bxe5 {[%clk 0:00:59.4]} 23. Rxf8 {[%clk 0:01:59.7]} 1-0

[Event "*** SCC Grand Prix: Titled Tuesday Blitz"]
[Site "Chess.com"]
[Date "2020.10.06"]
[Round "3"]
[White "flexova"]
[Black "mr65"]
[Result "1-0"]
[WhiteElo "2359"]
[BlackElo "2152"]
[TimeControl "180+1"]
[EndTime "10:24:20 PDT"]
[Termination "flexova won by resignation"]

1. e4 {[%clk 0:02:59]} 1... e5 {[%clk 0:00:29.7]} 2. Nf3 {[%clk 0:02:54.2]} 2...
Nc6 {[%clk 0:00:28.8]} 3. Nc3 {[%clk 0:02:54]} 3... Nf6 {[%clk 0:00:28]} 4. g3
{[%clk 0:02:54]} 4... Bb4 {[%clk 0:00:27.3]} 5. Bg2 {[%clk 0:02:52.9]} 5... Bxc3
{[%clk 0:00:26.6]} 6. dxc3 {[%clk 0:02:53]} 6... Nxe4 {[%clk 0:00:26.4]} 7. Nxe5
{[%clk 0:02:45.7]} 7... Nxe5 {[%clk 0:00:25.8]} 8. Bxe4 {[%clk 0:02:42.4]} 8...
O-O {[%clk 0:00:25.5]} 9. O-O {[%clk 0:02:42]} 9... f5 {[%clk 0:00:25.1]} 10.
Bg2 {[%clk 0:02:42.5]} 10... f4 {[%clk 0:00:24.6]} 11. Qd5+ {[%clk 0:02:42]}
11... Nf7 {[%clk 0:00:23.1]} 12. Bxf4 {[%clk 0:02:42.4]} 12... c6 {[%clk
0:00:23.1]} 13. Qd4 {[%clk 0:02:37.7]} 13... d5 {[%clk 0:00:22.9]} 14. Rae1
{[%clk 0:02:36]} 14... Nd6 {[%clk 0:00:22.1]} 15. Bxd6 {[%clk 0:02:26.9]} 15...
Qxd6 {[%clk 0:00:21.5]} 16. c4 {[%clk 0:02:27.5]} 16... Be6 {[%clk 0:00:19.3]}
17. cxd5 {[%clk 0:02:25.6]} 17... Bxd5 {[%clk 0:00:17.6]} 18. c4 {[%clk
0:02:23.8]} 1-0

[Event "*** SCC Grand Prix: Titled Tuesday Blitz"]
[Site "Chess.com"]
[Date "2020.10.06"]
[Round "3"]
[White "Rogarcia1"]
[Black "Manukyan_Artak"]
[Result "1-0"]
[WhiteElo "2143"]
[BlackElo "2317"]
[TimeControl "180+1"]
[EndTime "10:24:31 PDT"]
[Termination "Rogarcia1 won by resignation"]

1. e4 {[%clk 0:03:00.9]} 1... c6 {[%clk 0:02:59.8]} 2. d4 {[%clk 0:03:00.2]}
2... d5 {[%clk 0:03:00]} 3. e5 {[%clk 0:03:00.2]} 3... Bf5 {[%clk 0:02:59.6]} 4.
c3 {[%clk 0:02:55.3]} 4... e6 {[%clk 0:02:59.8]} 5. Nf3 {[%clk 0:02:53.9]} 5...
c5 {[%clk 0:03:00.1]} 6. Be2 {[%clk 0:02:51.8]} 6... Nc6 {[%clk 0:03:00.3]} 7.
O-O {[%clk 0:02:50.8]} 7... Qb6 {[%clk 0:03:00.4]} 8. dxc5 {[%clk 0:02:43.8]}
8... Bxc5 {[%clk 0:02:59.3]} 9. b4 {[%clk 0:02:43.9]} 9... Be7 {[%clk
0:02:58.9]} 10. Bf4 {[%clk 0:02:36.5]} 10... h6 {[%clk 0:02:58.1]} 11. a4 {[%clk
0:02:18.9]} 11... g5 {[%clk 0:02:55]} 12. Be3 {[%clk 0:02:11.3]} 12... Qc7
{[%clk 0:02:54.3]} 13. b5 {[%clk 0:02:00.8]} 13... Na5 {[%clk 0:02:51.1]} 14.
Nbd2 {[%clk 0:01:50.8]} 14... Rd8 {[%clk 0:02:40.2]} 15. Nd4 {[%clk 0:01:33.1]}
15... Bg6 {[%clk 0:02:36.5]} 16. b6 {[%clk 0:01:22]} 16... axb6 {[%clk
0:02:33.4]} 17. Nb5 {[%clk 0:01:20.9]} 17... Qc6 {[%clk 0:02:02.7]} 18. Nb3
{[%clk 0:01:18.7]} 18... Kf8 {[%clk 0:01:57.9]} 19. N3d4 {[%clk 0:01:09.4]}
19... Qxc3 {[%clk 0:01:56]} 20. Nxc3 {[%clk 0:01:08.6]} 20... Nc4 {[%clk
0:01:54]} 21. Bxc4 {[%clk 0:01:02.4]} 21... dxc4 {[%clk 0:01:47.8]} 22. f4
{[%clk 0:01:02.5]} 22... Bc5 {[%clk 0:01:43.7]} 23. Nxe6+ {[%clk 0:00:57.8]} 1-0

[Event "*** SCC Grand Prix: Titled Tuesday Blitz"]
[Site "Chess.com"]
[Date "2020.10.06"]
[Round "3"]
[White "NotFischer"]
[Black "BigAl"]
[Result "0-1"]
[WhiteElo "2280"]
[BlackElo "2510"]
[TimeControl "180+1"]
[EndTime "10:24:34 PDT"]
[Termination "BigAl won by resignation"]

1. e4 {[%clk 0:02:59.7]} 1... c6 {[%clk 0:03:00.3]} 2. d4 {[%clk 0:02:59.4]}
2... d5 {[%clk 0:03:00.9]} 3. exd5 {[%clk 0:03:00.3]} 3... cxd5 {[%clk 0:03:01]}
4. Bd3 {[%clk 0:03:00.9]} 4... Nc6 {[%clk 0:03:00.6]} 5. c3 {[%clk 0:03:01.2]}
5... Qc7 {[%clk 0:03:01.3]} 6. Ne2 {[%clk 0:03:00.9]} 6... Bg4 {[%clk
0:03:00.2]} 7. f3 {[%clk 0:03:01.3]} 7... Bd7 {[%clk 0:02:58.8]} 8. Bf4 {[%clk
0:03:01.1]} 8... e5 {[%clk 0:02:59]} 9. dxe5 {[%clk 0:03:02]} 9... Nxe5 {[%clk
0:02:59.4]} 10. O-O {[%clk 0:03:01.8]} 10... Bd6 {[%clk 0:03:00.1]} 11. Re1
{[%clk 0:02:36.5]} 11... Ne7 {[%clk 0:02:57.3]} 12. Bg3 {[%clk 0:02:24.4]} 12...
O-O {[%clk 0:02:55]} 13. Nd4 {[%clk 0:02:15.3]} 13... Rae8 {[%clk 0:02:39.1]}
14. Bb5 {[%clk 0:01:59.8]} 14... Bxb5 {[%clk 0:02:06.3]} 15. Nxb5 {[%clk
0:01:59.1]} 15... Qb6+ {[%clk 0:02:06.5]} 16. Nd4 {[%clk 0:01:58.9]} 16... Qxb2
{[%clk 0:01:59.2]} 17. Nd2 {[%clk 0:01:44.4]} 17... N7c6 {[%clk 0:01:50.4]} 18.
Nf5 {[%clk 0:01:35.6]} 18... Bc5+ {[%clk 0:01:49.3]} 19. Kh1 {[%clk 0:01:35.3]}
19... Nd3 {[%clk 0:01:31.4]} 20. Rxe8 {[%clk 0:01:29.2]} 20... Rxe8 {[%clk
0:01:31.7]} 21. Nb3 {[%clk 0:01:30]} 21... Nf2+ {[%clk 0:01:20.3]} 22. Bxf2
{[%clk 0:01:29.7]} 22... Bxf2 {[%clk 0:01:20.9]} 23. Qxd5 {[%clk 0:01:26.1]}
23... Qxa1+ {[%clk 0:01:16.2]} 0-1

[Event "*** SCC Grand Prix: Titled Tuesday Blitz"]
[Site "Chess.com"]
[Date "2020.10.06"]
[Round "3"]
[White "ChessicallyInclined"]
[Black "ljuks68"]
[Result "1-0"]
[WhiteElo "2536"]
[BlackElo "2336"]
[TimeControl "180+1"]
[EndTime "10:24:56 PDT"]
[Termination "ChessicallyInclined won by checkmate"]

1. d4 {[%clk 0:03:00.9]} 1... d5 {[%clk 0:02:59.7]} 2. c4 {[%clk 0:02:54.8]}
2... c6 {[%clk 0:02:59.7]} 3. Nf3 {[%clk 0:02:52.7]} 3... Nf6 {[%clk 0:03:00]}
4. e3 {[%clk 0:02:52.8]} 4... e6 {[%clk 0:02:59.3]} 5. Nc3 {[%clk 0:02:47.8]}
5... Nbd7 {[%clk 0:02:58.7]} 6. Bd2 {[%clk 0:02:47.7]} 6... Bd6 {[%clk 0:02:57]}
7. Bd3 {[%clk 0:02:48.1]} 7... dxc4 {[%clk 0:02:54.9]} 8. Bxc4 {[%clk 0:02:49]}
8... b5 {[%clk 0:02:55.3]} 9. Bd3 {[%clk 0:02:45]} 9... a6 {[%clk 0:02:53.6]}
10. Ne4 {[%clk 0:02:39.8]} 10... Be7 {[%clk 0:02:50.6]} 11. Rc1 {[%clk
0:02:38.6]} 11... Bb7 {[%clk 0:02:49]} 12. b4 {[%clk 0:02:38.5]} 12... Nd5
{[%clk 0:02:31.4]} 13. Nc5 {[%clk 0:02:20.7]} 13... Nxc5 {[%clk 0:02:29.6]} 14.
bxc5 {[%clk 0:02:21.6]} 14... Qc7 {[%clk 0:02:25.6]} 15. Ne5 {[%clk 0:02:15.1]}
15... O-O {[%clk 0:02:02.8]} 16. O-O {[%clk 0:02:10]} 16... Bf6 {[%clk
0:01:44.6]} 17. e4 {[%clk 0:01:53]} 17... Bxe5 {[%clk 0:01:39.7]} 18. dxe5
{[%clk 0:01:43.7]} 18... Ne7 {[%clk 0:01:35.1]} 19. Bc3 {[%clk 0:01:40.5]} 19...
a5 {[%clk 0:01:31.8]} 20. Qe2 {[%clk 0:01:38.3]} 20... b4 {[%clk 0:01:27.4]} 21.
Bb2 {[%clk 0:01:38.1]} 21... Rfd8 {[%clk 0:01:13.8]} 22. Bc4 {[%clk 0:01:32.7]}
22... Qc8 {[%clk 0:01:01.1]} 23. Rfd1 {[%clk 0:01:27.3]} 23... Rxd1+ {[%clk
0:00:55.9]} 24. Rxd1 {[%clk 0:01:26.9]} 24... Ba6 {[%clk 0:00:54.1]} 25. Bxa6
{[%clk 0:01:26.2]} 25... Qxa6 {[%clk 0:00:52.2]} 26. Qxa6 {[%clk 0:01:26]} 26...
Rxa6 {[%clk 0:00:52.4]} 27. Rd8# {[%clk 0:01:26.1]} 1-0

[Event "*** SCC Grand Prix: Titled Tuesday Blitz"]
[Site "Chess.com"]
[Date "2020.10.06"]
[Round "3"]
[White "XxPetroffsxX"]
[Black "fabianvivasz"]
[Result "0-1"]
[WhiteElo "2198"]
[BlackElo "2366"]
[TimeControl "180+1"]
[EndTime "10:25:10 PDT"]
[Termination "fabianvivasz won by resignation"]

1. e4 {[%clk 0:03:00]} 1... e5 {[%clk 0:02:59]} 2. Nf3 {[%clk 0:02:59.6]} 2...
Nc6 {[%clk 0:02:58.9]} 3. Bb5 {[%clk 0:02:59.9]} 3... f5 {[%clk 0:02:58.4]} 4.
d3 {[%clk 0:02:59]} 4... fxe4 {[%clk 0:02:58.5]} 5. dxe4 {[%clk 0:02:58.9]} 5...
Nf6 {[%clk 0:02:58.2]} 6. Nc3 {[%clk 0:02:56]} 6... Bb4 {[%clk 0:02:58]} 7. O-O
{[%clk 0:02:55.3]} 7... Bxc3 {[%clk 0:02:57.6]} 8. bxc3 {[%clk 0:02:55.1]} 8...
d6 {[%clk 0:02:57.3]} 9. Bc4 {[%clk 0:02:36.9]} 9... Bg4 {[%clk 0:02:50]} 10. h3
{[%clk 0:02:36.1]} 10... Bh5 {[%clk 0:02:49.9]} 11. g4 {[%clk 0:02:35.4]} 11...
Bg6 {[%clk 0:02:20.2]} 12. Ng5 {[%clk 0:02:31.8]} 12... Qe7 {[%clk 0:02:14.5]}
13. f4 {[%clk 0:02:20.1]} 13... exf4 {[%clk 0:02:09.8]} 14. Bxf4 {[%clk
0:02:18.1]} 14... Ne5 {[%clk 0:02:00.7]} 15. Bxe5 {[%clk 0:02:00.6]} 15... Qxe5
{[%clk 0:02:01.6]} 16. Qd2 {[%clk 0:01:41]} 16... Qc5+ {[%clk 0:01:53.8]} 17.
Qd4 {[%clk 0:01:31]} 17... Qxg5 {[%clk 0:01:53.7]} 18. e5 {[%clk 0:01:22.8]}
18... Qxe5 {[%clk 0:01:14.2]} 19. Rae1 {[%clk 0:01:21.8]} 19... Ne4 {[%clk
0:01:14.3]} 20. Bf7+ {[%clk 0:01:18.6]} 20... Kd7 {[%clk 0:01:00.8]} 21. Qa4+
{[%clk 0:01:17.6]} 21... b5 {[%clk 0:00:56.4]} 22. Bxg6 {[%clk 0:01:15.1]} 22...
Qg3+ {[%clk 0:00:53.8]} 0-1

[Event "*** SCC Grand Prix: Titled Tuesday Blitz"]
[Site "Chess.com"]
[Date "2020.10.06"]
[Round "3"]
[White "Fandorine"]
[Black "Sashadav97"]
[Result "0-1"]
[WhiteElo "2866"]
[BlackElo "2605"]
[TimeControl "180+1"]
[EndTime "10:25:20 PDT"]
[Termination "Sashadav97 won by resignation"]

1. e4 {[%clk 0:03:00.9]} 1... c5 {[%clk 0:02:58.7]} 2. b3 {[%clk 0:03:00.7]}
2... g6 {[%clk 0:02:56.6]} 3. Bb2 {[%clk 0:02:59.1]} 3... Nf6 {[%clk 0:02:56.8]}
4. f4 {[%clk 0:02:57.4]} 4... Bg7 {[%clk 0:02:54.3]} 5. Qf3 {[%clk 0:02:57.8]}
5... O-O {[%clk 0:02:51]} 6. e5 {[%clk 0:02:57.6]} 6... Ne8 {[%clk 0:02:50.9]}
7. h4 {[%clk 0:02:58.1]} 7... d6 {[%clk 0:02:47.8]} 8. h5 {[%clk 0:02:56.3]}
8... Nc6 {[%clk 0:02:33.9]} 9. Qf2 {[%clk 0:02:39]} 9... dxe5 {[%clk 0:02:20.1]}
10. Nc3 {[%clk 0:02:22.9]} 10... exf4 {[%clk 0:02:12.8]} 11. O-O-O {[%clk
0:02:22]} 11... Bf5 {[%clk 0:02:12.2]} 12. Qxf4 {[%clk 0:02:04]} 12... Nd4
{[%clk 0:02:07.9]} 13. d3 {[%clk 0:01:59.8]} 13... Qa5 {[%clk 0:01:43.7]} 14. g4
{[%clk 0:01:24.7]} 14... Ne6 {[%clk 0:01:43.5]} 15. Qd2 {[%clk 0:01:16.8]} 15...
Bxg4 {[%clk 0:01:39.4]} 16. Be2 {[%clk 0:01:17.3]} 16... Bxe2 {[%clk 0:01:36.2]}
17. Ngxe2 {[%clk 0:01:18.2]} 17... Nd4 {[%clk 0:01:29]} 18. hxg6 {[%clk
0:01:08.3]} 18... fxg6 {[%clk 0:01:22.9]} 19. Nxd4 {[%clk 0:01:03.3]} 19... cxd4
{[%clk 0:01:18.4]} 20. Nd5 {[%clk 0:00:29.4]} 20... Qxd5 {[%clk 0:01:15.6]} 0-1

[Event "*** SCC Grand Prix: Titled Tuesday Blitz"]
[Site "Chess.com"]
[Date "2020.10.06"]
[Round "3"]
[White "chorejason"]
[Black "Aleksandar-Topalov"]
[Result "1-0"]
[WhiteElo "2163"]
[BlackElo "2354"]
[TimeControl "180+1"]
[EndTime "10:25:20 PDT"]
[Termination "chorejason won by resignation"]

1. e4 {[%clk 0:03:00.9]} 1... e6 {[%clk 0:02:56.2]} 2. d4 {[%clk 0:02:59.5]}
2... d5 {[%clk 0:02:56.2]} 3. Nd2 {[%clk 0:02:57.8]} 3... Nf6 {[%clk 0:02:55.5]}
4. e5 {[%clk 0:02:58.3]} 4... Ng8 {[%clk 0:02:55.7]} 5. Bd3 {[%clk 0:02:58.9]}
5... Ne7 {[%clk 0:02:56.2]} 6. c3 {[%clk 0:02:56.2]} 6... Qd7 {[%clk 0:02:56.7]}
7. Ne2 {[%clk 0:02:56.2]} 7... b6 {[%clk 0:02:57.2]} 8. O-O {[%clk 0:02:56.2]}
8... Ba6 {[%clk 0:02:57.7]} 9. c4 {[%clk 0:02:50.7]} 9... dxc4 {[%clk
0:02:56.5]} 10. Nxc4 {[%clk 0:02:45.6]} 10... Nd5 {[%clk 0:02:56.7]} 11. f4
{[%clk 0:02:39.6]} 11... g6 {[%clk 0:02:56.1]} 12. Qe1 {[%clk 0:02:33.7]} 12...
h5 {[%clk 0:02:55.4]} 13. Bd2 {[%clk 0:02:30.9]} 13... Bb7 {[%clk 0:02:53.4]}
14. Rc1 {[%clk 0:02:10.3]} 14... Nc6 {[%clk 0:02:53]} 15. a3 {[%clk 0:02:00.9]}
15... Nce7 {[%clk 0:02:52.7]} 16. b4 {[%clk 0:01:57.9]} 16... Nf5 {[%clk
0:02:52.4]} 17. Bxf5 {[%clk 0:01:50.6]} 17... gxf5 {[%clk 0:02:52.2]} 18. Qf2
{[%clk 0:01:43.4]} 18... h4 {[%clk 0:02:49.3]} 19. Ne3 {[%clk 0:01:28.6]} 19...
Be7 {[%clk 0:02:41.8]} 20. Rc2 {[%clk 0:01:24.3]} 20... Rg8 {[%clk 0:02:38]} 21.
g3 {[%clk 0:00:45.1]} 21... hxg3 {[%clk 0:02:35.9]} 22. Nxg3 {[%clk 0:00:44.3]}
22... Nxe3 {[%clk 0:02:19.6]} 23. Qxe3 {[%clk 0:00:28]} 23... Qd5 {[%clk
0:02:19.5]} 24. Kf2 {[%clk 0:00:28.2]} 24... Qg2+ {[%clk 0:02:13.5]} 25. Ke1
{[%clk 0:00:28.7]} 25... Qxh2 {[%clk 0:02:12.1]} 26. Rg1 {[%clk 0:00:28]} 26...
Bh4 {[%clk 0:02:09.8]} 27. Kd1 {[%clk 0:00:26.7]} 27... O-O-O {[%clk 0:01:54.6]}
28. Be1 {[%clk 0:00:24.6]} 28... Kb8 {[%clk 0:01:44.2]} 29. Rxh2 {[%clk
0:00:21.9]} 1-0

[Event "*** SCC Grand Prix: Titled Tuesday Blitz"]
[Site "Chess.com"]
[Date "2020.10.06"]
[Round "3"]
[White "jerry_77"]
[Black "slavenok"]
[Result "0-1"]
[WhiteElo "2452"]
[BlackElo "2730"]
[TimeControl "180+1"]
[EndTime "10:25:23 PDT"]
[Termination "slavenok won by resignation"]

1. e4 {[%clk 0:03:00.9]} 1... c5 {[%clk 0:02:59.5]} 2. Nf3 {[%clk 0:02:58.6]}
2... a6 {[%clk 0:02:59.7]} 3. d4 {[%clk 0:02:58.2]} 3... cxd4 {[%clk 0:03:00.6]}
4. Nxd4 {[%clk 0:02:59.1]} 4... Nf6 {[%clk 0:03:00.4]} 5. Nc3 {[%clk 0:02:53.4]}
5... e5 {[%clk 0:03:00]} 6. Nb3 {[%clk 0:02:51.3]} 6... Bb4 {[%clk 0:03:00.1]}
7. Bd3 {[%clk 0:02:51.7]} 7... d5 {[%clk 0:02:59.4]} 8. exd5 {[%clk 0:02:52.6]}
8... Nxd5 {[%clk 0:02:59.2]} 9. Bd2 {[%clk 0:02:44.9]} 9... Bxc3 {[%clk
0:02:58.6]} 10. bxc3 {[%clk 0:02:37.7]} 10... O-O {[%clk 0:02:58]} 11. O-O
{[%clk 0:02:23.5]} 11... Nc6 {[%clk 0:02:57.4]} 12. c4 {[%clk 0:02:16.6]} 12...
Nf4 {[%clk 0:02:53.5]} 13. Bxf4 {[%clk 0:02:15.3]} 13... exf4 {[%clk 0:02:54.4]}
14. Re1 {[%clk 0:02:16]} 14... Qf6 {[%clk 0:02:51.8]} 15. Nc5 {[%clk 0:02:11.1]}
15... b6 {[%clk 0:02:42.9]} 16. Ne4 {[%clk 0:02:09.2]} 16... Qh6 {[%clk
0:02:37.3]} 17. Qf3 {[%clk 0:02:06.2]} 17... Bb7 {[%clk 0:02:08.8]} 18. Rab1
{[%clk 0:02:02]} 18... Nd4 {[%clk 0:02:00.3]} 19. Nf6+ {[%clk 0:01:43.7]} 19...
Qxf6 {[%clk 0:01:58.6]} 20. Qxb7 {[%clk 0:01:44.6]} 20... f3 {[%clk 0:01:54.5]}
21. Qxb6 {[%clk 0:01:43]} 21... Qg5 {[%clk 0:01:48.8]} 22. g3 {[%clk 0:01:27.8]}
22... Ne6 {[%clk 0:01:43.4]} 23. Rxe6 {[%clk 0:01:23.2]} 23... fxe6 {[%clk
0:01:40.6]} 24. Qxe6+ {[%clk 0:01:24.1]} 24... Kh8 {[%clk 0:01:40]} 25. Qe4
{[%clk 0:01:21.9]} 25... Qh6 {[%clk 0:01:35.9]} 26. c5 {[%clk 0:01:19.2]} 26...
Rae8 {[%clk 0:01:35.2]} 27. Qb4 {[%clk 0:01:14.9]} 27... Rd8 {[%clk 0:01:32.2]}
28. Bf1 {[%clk 0:01:14.6]} 28... Qg6 {[%clk 0:01:30.2]} 29. Qb6 {[%clk
0:01:12.3]} 29... Qxc2 {[%clk 0:01:28.4]} 30. Rb3 {[%clk 0:01:10.6]} 30... Rd1
{[%clk 0:01:25.5]} 31. Qxa6 {[%clk 0:01:01.4]} 31... Qe2 {[%clk 0:01:18.6]} 0-1